fUST/lending_fUST_20240924
["ID","MTS","AMOUNT","RATE_DAILY","PERIOD"]
[339035109,1727157041371,-151.0,0.0003148,7]
[339035110,1727157041380,-151.0,0.0003148,7]
[339035111,1727157041389,-852.120959,0.0003148,7]
[339035112,1727157041399,-852.120959,0.0003148,7]
[339035113,1727157041409,-151.0,0.0003148,7]
[339035114,1727157041419,-151.0,0.0003148,7]
[339035115,1727157041428,-151.0,0.0003148,7]
[339035116,1727157041438,-172.7,0.000315,7]
[339035117,1727157041457,-356.79,0.000315,14]
[339035118,1727157041466,-153.0,0.00031563,2]
[339035119,1727157041475,-500.0,0.00031567,5]
[339035120,1727157041484,-500.0,0.00031567,5]
[339035121,1727157041493,-1264.22486682,0.00031605,2]
[339035122,1727157041502,-330.641442,0.00031605,7]
[339035123,1727157041511,-533.200432,0.00031605,7]
[339035124,1727157041520,-330.641442,0.00031605,7]
[339035125,1727157041529,-533.200432,0.00031605,7]
[339035126,1727157041538,-276.0,0.00031644,2]
[339035127,1727157041547,-438.0,0.00031644,2]
[339035128,1727157041557,-151.0,0.00031644,2]
[339035129,1727157041566,-9718.28772619,0.0003189,4]
[339035130,1727157041576,-1941.15325245,0.000319,2]
[339035131,1727157041586,-212.77213372,0.00031902,2]
[339035132,1727157041595,-1000.0,0.00031921,5]
[339035133,1727157041605,-350.0,0.00032,30]
[339035134,1727157041614,-350.0,0.00032,30]
[339035135,1727157041624,-349.00990357,0.00032,120]
[339035136,1727157041637,-506.18195658,0.00032115,5]
[339035137,1727157041647,-1000.0,0.00032115,5]
[339035138,1727157041657,-154.4526814,0.00032186,2]
[339035139,1727157041667,-153.0,0.00032186,2]
[339035140,1727157041676,-153.0,0.00032186,2]
[339035141,1727157041686,-150.112239,0.000322,10]
[339035142,1727157041699,-150.112238,0.000322,5]
[339035143,1727157041708,-263.582448,0.000322,7]
[339035144,1727157041718,-852.120959,0.000322,7]
[339035145,1727157041728,-852.120959,0.000322,7]
[339035146,1727157041738,-151.0,0.000322,7]
[339035147,1727157041748,-151.0,0.000322,7]
[339035148,1727157041758,-151.0,0.000322,7]
[339035149,1727157041767,-153.0,0.00032257,2]
[339035150,1727157041777,-153.0,0.00032257,2]
[339035151,1727157041788,-153.0,0.00032257,2]
[339035152,1727157041798,-153.0,0.00032257,2]
[339035153,1727157041808,-154.16416,0.000323,9]
[339035154,1727157041818,-1000.0,0.000324,14]
[339035155,1727157041828,-1331.20340788,0.00032487,3]
[339035156,1727157041838,-150.112233,0.000325,6]
[339035157,1727157041848,-150.112233,0.000325,7]
[339035158,1727157041857,-212.77213372,0.00032569,2]
[339035159,1727157041867,-134642.7312,0.00032575,2]
[339035160,1727157041877,-234.6,0.00032576,6]
[339035161,1727157041887,-150.112233,0.000326,7]
[339035162,1727157041897,-1500.0,0.00032631,5]
[339035163,1727157041908,-20000.0,0.00032669,3]
[339035164,1727157041918,-151.0,0.00032669,7]
[339035165,1727157041928,-151.0,0.00032669,7]
[339035166,1727157041938,-151.0,0.00032669,7]
[339035167,1727157041949,-274.59936,0.00032669,7]
[339035168,1727157041958,-311.31112,0.00032669,7]
[339035169,1727157041968,-311.31112,0.00032669,7]
[339035170,1727157041978,-967.066354,0.00032669,7]
[339035171,1727157041987,-347.287964,0.00032669,7]
[339035172,1727157041998,-967.066354,0.00032669,7]
[339035173,1727157042007,-347.287964,0.00032669,7]
[339035174,1727157042017,-151.0,0.00032669,7]
[339035175,1727157042027,-184.761098,0.00032669,7]
[339035176,1727157042040,-184.761098,0.00032669,7]
[339035177,1727157042050,-1455.188216,0.00032669,7]
[339035178,1727157042059,-1455.188216,0.00032669,7]
[339035179,1727157042069,-151.0,0.00032669,7]
[339035180,1727157042079,-151.0,0.00032669,7]
[339035181,1727157042088,-151.0,0.00032669,7]
[339035182,1727157042098,-209.0432937,0.00032679,2]
[339035183,1727157042108,-39143.7502783,0.0003269,120]
[339035184,1727157042128,-1162.92386433,0.0003269,120]
[339035185,1727157042137,-150.112233,0.000327,9]
[339035186,1727157042147,-9718.28772619,0.0003271,4]
[339035187,1727157042156,-311.81201929,0.0003271,7]
[339035194,1727157043153,-6861.65502267,0.0002957,2]
[339035195,1727157043163,-6861.65502267,0.00029859,2]
[339035196,1727157043172,-540.30893971,0.0003271,7]
[339035197,1727157043182,-852.120959,0.0003271,7]
[339035198,1727157043192,-151.0,0.0003271,7]
[339035199,1727157043202,-151.0,0.0003271,7]
[339035200,1727157043212,-151.0,0.0003271,7]
[339035201,1727157043221,-9718.28772619,0.00032714,4]
[339035202,1727157043231,-9718.28772619,0.00032714,4]
[339035203,1727157043240,-151.0,0.0003272,7]
[339035204,1727157043249,-151.0,0.0003272,7]
[339035205,1727157043259,-151.0,0.0003272,7]
[339035207,1727157043268,-151.0,0.0003272,7]
[339035208,1727157043278,-165.399808,0.0003272,7]
[339035209,1727157043289,-330.641442,0.0003272,7]
[339035210,1727157043299,-533.200432,0.0003272,7]
[339035211,1727157043308,-330.641442,0.0003272,7]
[339035212,1727157043317,-533.200432,0.0003272,7]
[339035214,1727157043328,-234.372546,0.0003272,7]
[339035215,1727157043337,-151.0,0.0003272,7]
[339035216,1727157043347,-151.0,0.0003272,7]
[339035217,1727157043356,-2754.748959,0.0003272,7]
[339035218,1727157043366,-2754.748959,0.0003272,7]
[339035219,1727157043376,-330.641442,0.00032724,7]
[339035220,1727157043386,-330.641442,0.00032724,7]
[339035221,1727157043396,-533.200432,0.00032724,7]
[339035222,1727157043406,-533.200432,0.00032724,7]
[339035223,1727157043415,-330.641442,0.00032724,7]
[339035224,1727157043512,-330.641442,0.00032724,7]
[339035225,1727157043522,-533.200432,0.00032724,7]
[339035226,1727157043532,-533.200432,0.00032724,7]
[339035227,1727157043541,-151.0,0.00032724,7]
[339035228,1727157043550,-151.0,0.00032724,7]
[339035229,1727157043559,-967.066354,0.00032724,7]
[339035230,1727157043569,-967.066354,0.00032724,7]
[339035231,1727157043579,-347.287964,0.00032724,7]
[339035232,1727157043588,-347.287964,0.00032724,7]
[339035233,1727157043598,-967.066354,0.00032724,7]
[339035234,1727157043607,-967.066354,0.00032724,7]
[339035235,1727157043617,-347.287964,0.00032724,7]
[339035236,1727157043627,-347.287964,0.00032724,7]
[339035237,1727157043637,-151.0,0.00032724,7]
[339035238,1727157043646,-151.0,0.00032724,7]
[339035239,1727157043656,-184.761098,0.00032724,7]
[339035240,1727157043665,-184.761098,0.00032724,7]
[339035241,1727157043674,-184.761098,0.00032724,7]
[339035242,1727157043684,-184.761098,0.00032724,7]
[339035243,1727157043694,-2754.748959,0.00032724,7]
[339035244,1727157043704,-2754.748959,0.00032724,7]
[339035245,1727157043713,-2754.748959,0.00032724,7]
[339035246,1727157043724,-2754.748959,0.00032724,7]
[339035247,1727157043734,-1455.188216,0.00032724,7]
[339035248,1727157043743,-1455.188216,0.00032724,7]
[339035249,1727157043753,-1455.188216,0.00032724,7]
[339035250,1727157043762,-1455.188216,0.00032724,7]
[339035251,1727157043771,-151.0,0.00032724,7]
[339035252,1727157043781,-151.0,0.00032724,7]
[339035253,1727157043790,-151.0,0.00032724,7]
[339035254,1727157043800,-151.0,0.00032724,7]
[339035255,1727157043809,-151.0,0.00032724,7]
[339035256,1727157043818,-151.0,0.00032724,7]
[339035257,1727157043828,-852.120959,0.00032724,7]
[339035258,1727157043838,-852.120959,0.00032724,7]
[339035259,1727157043847,-151.0,0.00032724,7]
[339035260,1727157043856,-151.0,0.00032724,7]
[339035261,1727157043865,-151.0,0.00032724,7]
[339035262,1727157043875,-153.0,0.00032734,2]
[339035263,1727157043884,-153.0,0.00032734,2]
[339035264,1727157043893,-153.0,0.00032734,2]
[339035265,1727157043904,-153.0,0.00032734,2]
[339035266,1727157043913,-967.066354,0.0003274,7]
[339035267,1727157043923,-347.287964,0.0003274,7]
[339035268,1727157043933,-967.066354,0.0003274,7]
[339035269,1727157043942,-347.287964,0.0003274,7]
[339035270,1727157043952,-151.0,0.0003274,7]
[339035271,1727157043961,-184.761098,0.0003274,7]
[339035272,1727157043971,-184.761098,0.0003274,7]
[339035273,1727157043980,-1455.188216,0.0003274,7]
[339035274,1727157043989,-1455.188216,0.0003274,7]
[339035275,1727157043998,-151.0,0.0003274,7]
[339035276,1727157044007,-161.329104,0.0003274,7]
[339035277,1727157044017,-151.0,0.00032743,2]
[339035278,1727157044026,-151.0,0.00032776,7]
[339035279,1727157044039,-311.31112,0.00032776,7]
[339035280,1727157044048,-311.31112,0.00032776,7]
[339035281,1727157044058,-852.120959,0.00032776,7]
[339035282,1727157044067,-852.120959,0.00032776,7]
[339035283,1727157044078,-151.0,0.00032776,7]
[339035284,1727157044087,-151.0,0.00032776,7]
[339035285,1727157044097,-182.540109,0.00032776,7]
[339035286,1727157044108,-19436.5754524,0.0003278,4]
[339035287,1727157044117,-186.722519,0.0003279,2]
[339035288,1727157044127,-152.155449,0.0003279,7]
[339035289,1727157044136,-151.0,0.0003279,7]
[339035290,1727157044145,-151.0,0.0003279,7]
[339035291,1727157044154,-151.0,0.0003279,7]
[339035292,1727157044163,-151.0,0.0003279,7]
[339035293,1727157044172,-311.31112,0.0003279,7]
[339035294,1727157044182,-311.31112,0.0003279,7]
[339035295,1727157044192,-330.641442,0.0003279,7]
[339035296,1727157044201,-330.641442,0.0003279,7]
[339035297,1727157044211,-533.200432,0.0003279,7]
[339035298,1727157044220,-533.200432,0.0003279,7]
[339035299,1727157044230,-330.641442,0.0003279,7]
[339035300,1727157044241,-330.641442,0.0003279,7]
[339035301,1727157044250,-533.200432,0.0003279,7]
[339035302,1727157044259,-533.200436,0.0003279,7]
[339035303,1727157044268,-151.0,0.0003279,7]
[339035304,1727157044277,-151.0,0.0003279,7]
[339035305,1727157044287,-967.066354,0.0003279,7]
[339035306,1727157044296,-347.287964,0.0003279,7]
[339035307,1727157044306,-967.066358,0.0003279,7]
[339035308,1727157044315,-347.287954,0.0003279,7]
[339035309,1727157044325,-151.0,0.0003279,7]
[339035310,1727157044334,-184.761098,0.0003279,7]
[339035311,1727157044343,-184.761106,0.0003279,7]
[339035312,1727157044352,-2754.748959,0.0003279,7]
[339035313,1727157044362,-2754.748959,0.0003279,7]
[339035314,1727157044371,-2754.748959,0.0003279,7]
[339035315,1727157044381,-2754.748966,0.0003279,7]
[339035316,1727157044390,-1455.188216,0.0003279,7]
[339035317,1727157044399,-1455.188212,0.0003279,7]
[339035318,1727157044409,-9718.28772619,0.0003279,4]
[339035319,1727157044419,-151.0,0.0003279,7]
[339035320,1727157044428,-852.120959,0.0003279,7]
[339035321,1727157044439,-852.120959,0.0003279,7]
[339035322,1727157044449,-151.0,0.0003279,7]
[339035323,1727157044458,-151.0,0.0003279,7]
[339035324,1727157044468,-3098.8236618,0.000328,14]
[339035325,1727157044477,-25000.0,0.000328,2]
[339035326,1727157044487,-297.728922,0.000328,7]
[339035327,1727157044497,-151.0,0.000328,7]
[339035328,1727157044506,-151.0,0.000328,7]
[339035329,1727157044516,-3000.0,0.000328,13]
[339035330,1727157044525,-311.31112,0.000328,7]
[339035331,1727157044535,-311.31112,0.000328,7]
[339035332,1727157044544,-1000.0,0.000328,28]
[339035333,1727157044554,-1000.0,0.000328,28]
[339035334,1727157044563,-1000.0,0.000328,28]
[339035335,1727157044572,-131.99173126,0.000328,28]
[339035336,1727157044602,-868.00826874,0.000328,28]
[339035337,1727157044611,-1000.0,0.000328,28]
[339035338,1727157044621,-1000.0,0.000328,28]
[339035339,1727157044630,-1000.0,0.000328,28]
[339035340,1727157044640,-1000.0,0.000328,28]
[339035341,1727157044649,-1000.0,0.000328,28]
[339035342,1727157044658,-1000.0,0.000328,28]
[339035343,1727157044667,-1000.0,0.000328,28]
[339035344,1727157044677,-1000.0,0.000328,28]
[339035345,1727157044686,-1000.0,0.000328,28]
[339035346,1727157044695,-1000.0,0.000328,28]
[339035347,1727157044710,-1000.0,0.000328,28]
[339035348,1727157044719,-1000.0,0.000328,28]
[339035349,1727157044730,-1000.0,0.000328,28]
[339035350,1727157044739,-1000.0,0.000328,28]
[339035351,1727157044748,-1000.0,0.000328,28]
[339035352,1727157044758,-1000.0,0.000328,28]
[339035353,1727157044767,-1000.0,0.000328,28]
[339035354,1727157044777,-1000.0,0.000328,28]
[339035355,1727157044786,-1000.0,0.000328,28]
[339035356,1727157044796,-1000.0,0.000328,28]
[339035357,1727157044805,-1000.0,0.000328,28]
[339035358,1727157044815,-1000.0,0.000328,28]
[339035359,1727157044824,-1000.0,0.000328,28]
[339035360,1727157044833,-1000.0,0.000328,28]
[339035361,1727157044843,-1000.0,0.000328,28]
[339035362,1727157044852,-1000.0,0.000328,28]
[339035363,1727157044862,-1000.0,0.000328,28]
[339035364,1727157044871,-1000.0,0.000328,28]
[339035365,1727157044881,-1000.0,0.000328,28]
[339035366,1727157044890,-1000.0,0.000328,28]
[339035367,1727157044899,-1000.0,0.000328,28]
[339035368,1727157044911,-1000.0,0.000328,28]
[339035369,1727157044920,-1000.0,0.000328,28]
[339035370,1727157044929,-1000.0,0.000328,28]
[339035371,1727157044939,-1121.871718,0.000328,28]
[339035372,1727157044950,-852.120959,0.000328,7]
[339035373,1727157044959,-852.120961,0.000328,7]
[339035374,1727157044968,-151.0,0.000328,7]
[339035375,1727157044978,-242.684864,0.000328,7]
[339035376,1727157044987,-9718.28772619,0.000328,5]
[339035377,1727157044997,-3000.0,0.0003281,13]
[339035378,1727157045006,-3000.0,0.0003282,13]
[339035379,1727157045016,-1500.0,0.00032826,5]
[339035380,1727157045026,-3000.0,0.0003283,13]
[339035381,1727157045038,-9718.28772619,0.0003283,5]
[339035382,1727157045048,-3000.0,0.0003284,13]
[339035383,1727157045058,-151.0,0.0003285,7]
[339035384,1727157045067,-151.0,0.0003285,7]
[339035385,1727157045076,-3000.0,0.0003285,13]
[339035386,1727157045086,-311.31112,0.0003285,7]
[339035387,1727157045095,-311.31112,0.0003285,7]
[339035388,1727157045104,-151.0,0.00032856,7]
[339035389,1727157045113,-151.0,0.00032856,7]
[339035390,1727157045122,-311.31112,0.00032856,7]
[339035391,1727157045132,-311.31112,0.00032856,7]
[339035392,1727157045141,-657.21986748,0.00032856,5]
[339035393,1727157045164,-151.0,0.00030655,7]
[339035394,1727157045173,-9061.06785871,0.00032856,5]
[339035395,1727157045183,-3000.0,0.0003286,13]
[339035396,1727157045192,-29154.8631786,0.00032866,5]
[339035397,1727157045202,-151.0,0.00032866,7]
[339035398,1727157045211,-151.0,0.00032866,7]
[339035399,1727157045220,-311.31112,0.00032866,7]
[339035400,1727157045230,-311.31112,0.00032866,7]
[339035401,1727157045239,-3000.0,0.0003287,13]
[339035402,1727157045248,-184.57,0.00032875,2]
[339035403,1727157045258,-184.57,0.00032875,2]
[339035404,1727157045267,-501.89863553,0.00032876,14]
[339035405,1727157045276,-500.0,0.00032876,14]
[339035406,1727157045285,-501.38503107,0.00032876,14]
[339035407,1727157045294,-500.0,0.00032876,14]
[339035408,1727157045303,-500.0,0.00032876,14]
[339035409,1727157045313,-500.0,0.00032876,14]
[339035410,1727157045322,-509.7264279,0.00032876,10]
[339035411,1727157045331,-500.78578628,0.00032876,14]
[339035412,1727157045340,-503.95313366,0.00032876,14]
[339035413,1727157045350,-500.0,0.00032876,14]
[339035414,1727157045359,-501.70604804,0.00032876,14]
[339035415,1727157045368,-500.0,0.00032876,14]
[339035416,1727157045377,-502.59345523,0.00032876,14]
[339035417,1727157045386,-501.23728639,0.00032876,14]
[339035418,1727157045395,-500.0,0.00032876,14]
[339035419,1727157045404,-500.0,0.00032876,14]
[339035420,1727157045413,-500.0,0.00032876,14]
[339035421,1727157045510,-500.0,0.00032876,14]
[339035422,1727157045519,-500.0,0.00032876,14]
[339035423,1727157045527,-500.0,0.00032876,14]
[339035424,1727157045536,-500.0,0.00032876,14]
[339035425,1727157045545,-500.0,0.00032876,14]
[339035426,1727157045554,-500.0,0.00032876,14]
[339035427,1727157045564,-500.0,0.00032876,14]
[339035428,1727157045573,-500.0,0.00032876,14]
[339035429,1727157045582,-500.0,0.00032876,14]
[339035430,1727157045592,-456.33530205,0.00032876,14]
[339035431,1727157045646,-26.48833116,0.00032876,14]
[339035439,1727157054503,1275.80087604,0.00022001,2]
[339035440,1727157054523,1289.85698751,0.00022001,2]
[339035441,1727157054543,181.2428513,0.00022001,2]
[339035442,1727157054566,1110.28709431,0.00022001,2]
[339035443,1727157054586,245.0,0.00022001,2]
[339035444,1727157054608,266.75768103,0.00022001,2]
[339035445,1727157054628,177.16612233,0.00022001,2]
[339035446,1727157054654,453.88838748,0.00022001,2]
[339035452,1727157372151,-2662.93729077,0.00028,2]
[339035453,1727157426115,434.631065,0.00027397,2]
[339035456,1727157773258,150.0,0.00028,2]
[339035460,1727157815163,907.18581887,0.0002786,10]
[339035462,1727157903275,502.13,0.00025,8]
[339035463,1727157932162,-165.57475185,0.00028139,10]
[339035464,1727157932184,-206.3,0.0002924,4]
[339035465,1727157932205,-1003.31635428,0.00029989,7]
[339035466,1727157932226,-121.62193419,0.0003,120]
[339035467,1727157935121,-29.37806581,0.0003,120]
[339035468,1727157935142,-206.3,0.00030372,5]
[339035469,1727157935163,-163.612819,0.00030543,2]
[339035470,1727157935185,-250.0,0.00030648,2]
[339035471,1727157935207,-261.92215599,0.00030726,2]
[339035472,1727158026153,-171.9,0.00029241,4]
[339035473,1727158026176,-171.9,0.00030373,5]
[339035474,1727158026197,-184.48188601,0.00030726,2]
[339035475,1727158026218,-755.41008808,0.00030799,2]
[339035476,1727158030127,-309.21824332,0.00030799,2]
[339035477,1727158030147,-449.6482012,0.00030965,2]
[339035478,1727158030168,-210.633348,0.00030966,2]
[339035479,1727158030189,-210.633348,0.00031051,2]
[339035480,1727158030209,-272.20171534,0.000311,7]
[339035481,1727158030229,-210.633348,0.00031136,2]
[339035482,1727158030250,-109.2583052,0.00031221,2]
[339035485,1727158047232,-169.806225,0.00030781,2]
[339035486,1727158047255,-101.3750428,0.00031221,2]
[339035487,1727158047276,-210.633348,0.00031306,2]
[339035488,1727158047297,-210.633348,0.00031391,2]
[339035489,1727158047318,-153.0,0.00031435,2]
[339035490,1727158047338,-198.5729368,0.00031435,2]
[339035491,1727158047361,-210.633348,0.00031476,2]
[339035492,1727158047383,-171.9,0.00031505,5]
[339035493,1727158047406,-210.633348,0.00031561,2]
[339035494,1727158047427,-210.633348,0.00031646,2]
[339035495,1727158047447,-210.633348,0.00031731,2]
[339035496,1727158047469,-210.633348,0.00031816,2]
[339035497,1727158047493,-400.0,0.00031899,2]
[339035498,1727158047515,-400.0,0.00031899,2]
[339035499,1727158047536,-939.7917315,0.000319,11]
[339035510,1727158232476,-60.2082685,0.000319,11]
[339035511,1727158232486,-210.633348,0.00031901,2]
[339035512,1727158232495,-210.633348,0.00031986,2]
[339035513,1727158232504,-210.633348,0.00032071,2]
[339035514,1727158232513,-210.633348,0.00032156,2]
[339035515,1727158232522,-210.633348,0.0003224,2]
[339035516,1727158232531,-153.0,0.00032248,2]
[339035517,1727158232540,-210.633348,0.00032325,2]
[339035518,1727158232551,-17.15311015,0.0003235,2]
[339035531,1727158239440,-127.20661393,0.0003235,2]
[339035532,1727158239466,-3.13682514,0.0003235,2]
[339035563,1727158240421,-61.48093978,0.0003235,2]
[339035565,1727158240430,-208.977489,0.0003235,2]
[339035567,1727158240440,-208.977489,0.0003235,2]
[339035569,1727158240449,-164.05279574,0.00032395,2]
[339035571,1727158240459,-1000.0,0.000324,11]
[339035573,1727158240467,-210.633348,0.0003241,2]
[339035585,1727158240581,-210.633348,0.00032495,2]
[339035587,1727158240591,-210.633348,0.0003258,2]
[339035589,1727158240600,-171.9,0.00032638,6]
[339035590,1727158240609,-400.0,0.00032677,2]
[339035592,1727158240618,-400.0,0.00032678,2]
[339035594,1727158240627,-208.977489,0.00032679,2]
[339035596,1727158240637,-208.977489,0.00032679,2]
[339035598,1727158240646,-209.0432937,0.00032679,2]
[339035600,1727158240655,-209.0432937,0.00032679,2]
[339035602,1727158240664,-212.007942,0.00032679,2]
[339035604,1727158240673,-1000.0,0.00032703,2]
[339035606,1727158240682,-948.16865015,0.0003274,2]
[339035608,1727158240691,-1000.0,0.00032756,2]
[339035609,1727158240700,-1840.18116275,0.00032768,2]
[339035611,1727158240709,-196.0,0.00032776,2]
[339035613,1727158240718,-2000.40042874,0.00032776,2]
[339035615,1727158240727,-673.2037511,0.00032776,120]
[339035617,1727158240736,-1701.82154913,0.00032776,120]
[339035619,1727158240745,-3000.0,0.000328,13]
[339035621,1727158240754,-3000.0,0.0003281,13]
[339035623,1727158240764,-3000.0,0.0003282,13]
[339035625,1727158240773,-3000.0,0.0003283,13]
[339035626,1727158240781,-3000.0,0.0003284,13]
[339035627,1727158240790,-416.0,0.00032846,3]
[339035629,1727158240799,-346.66,0.00032846,3]
[339035631,1727158240808,-288.89,0.00032846,3]
[339035633,1727158240817,-237.0,0.0003285,27]
[339035634,1727158240826,-3000.0,0.0003285,13]
[339035635,1727158240835,-500.0,0.00032855,2]
[339035636,1727158240844,-173.44750746,0.00032855,2]
[339035637,1727158240853,-232.06348024,0.00032855,2]
[339035638,1727158240862,-231.66971527,0.00032855,2]
[339035639,1727158240871,-500.0,0.00032855,2]
[339035640,1727158240880,-500.0,0.00032855,2]
[339035641,1727158240890,-22302.64656168,0.00032856,4]
[339035669,1727158246638,-29.35589064,0.00032856,4]
[339035673,1727158278717,379.361916,0.00027397,2]
[339035711,1727158729858,500.0,0.00028,2]
[339035713,1727158755850,154.06709926,0.0002786,10]
[339035714,1727158806984,431.150192,0.00027397,2]
[339035715,1727158839847,251.13286,0.00027,120]
[339035723,1727159148474,-166.666668,0.00029324,2]
[339035724,1727159148496,-243.4941693,0.00029439,2]
[339035725,1727159148518,-231.47102,0.00029474,2]
[339035726,1727159148544,-475.321679,0.00029609,2]
[339035727,1727159148568,-250.0,0.00029626,2]
[339035728,1727159148591,-170.710315,0.00029663,2]
[339035729,1727159148613,-382.7635654,0.0003,2]
[339035732,1727159231276,-190.681245,0.00028221,2]
[339035733,1727159231297,-5.67948546,0.0002949,2]
[339035734,1727159232104,-165.55273554,0.0002949,2]
[339035735,1727159232125,-164.05279574,0.00029914,2]
[339035736,1727159232147,-737.63482856,0.0003,2]
[339035737,1727159237135,-879.60160604,0.0003,2]
[339035738,1727159237158,-167.838601,0.00030014,2]
[339035739,1727159237180,-167.838601,0.00030238,2]
[339035740,1727159237204,-167.838601,0.00030461,2]
[339035741,1727159237227,-167.838601,0.00030685,2]
[339035742,1727159237250,-167.838601,0.00030908,2]
[339035743,1727159237273,-167.838601,0.00031131,2]
[339035744,1727159237297,-167.838601,0.00031355,2]
[339035745,1727159237319,-151.0,0.00031497,5]
[339035746,1727159237343,-167.838601,0.00031578,2]
[339035747,1727159237365,-340.0,0.00031737,2]
[339035748,1727159237387,-400.0,0.00031737,2]
[339035749,1727159237410,-242.48027115,0.00031738,2]
[339035750,1727159237441,-683.77462831,0.00031738,2]
[339035751,1727159242141,-164.554652,0.00029565,2]
[339035752,1727159242164,-164.554652,0.0003158,2]
[339035753,1727159242188,-616.08394496,0.00031738,2]
[339035754,1727159243223,-4122.84317116,0.00031738,2]
[339035756,1727159317236,19006.7656741,0.00024,60]
[339035757,1727159317261,25000.0,0.00024,60]
[339035758,1727159317289,25000.0,0.00024,60]
[339035759,1727159317313,25000.0,0.00024,60]
[339035760,1727159317338,6720.77793899,0.00024,60]
[339035761,1727159321367,18279.22206101,0.0001999,2]
[339035762,1727159321393,25000.0,0.0001999,2]
[339035763,1727159321418,25000.0,0.0001999,2]
[339035764,1727159321443,6720.77793899,0.0001999,2]
[339035768,1727159348719,-1000.0,0.00025,5]
[339035769,1727159348743,-358.63558279,0.0002509,2]
[339035808,1727159438314,-1499.12463956,0.0003,30]
[339035809,1727159438326,-153.0,0.00031426,2]
[339035810,1727159438336,-153.0,0.000315,2]
[339035811,1727159438346,-15962.36573706,0.000317,10]
[339035826,1727159442915,-230696.83868094,0.000317,10]
[339035827,1727159442928,-351.96971812,0.00031738,2]
[339035828,1727159442941,-153.0,0.000319,2]
[339035829,1727159442952,-959.0584864,0.000319,2]
[339035830,1727159442964,-501.25267831,0.00031973,5]
[339035831,1727159442976,-400.0,0.00031989,2]
[339035832,1727159442987,-2142.25866275,0.0003199,4]
[339035833,1727159442999,-211.51879184,0.0003199,4]
[339035834,1727159443011,-240.74,0.0003199,3]
[339035835,1727159443022,-200.62,0.0003199,3]
[339035836,1727159443034,-167.18,0.0003199,3]
[339035837,1727159443046,-184.58,0.00031999,2]
[339035838,1727159443063,-184.58,0.00031999,2]
[339035839,1727159443075,-500.0,0.00031999,2]
[339035840,1727159443088,-427.76073024,0.00031999,2]
[339035841,1727159443101,-162.44443617,0.00031999,2]
[339035842,1727159443113,-500.0,0.00031999,2]
[339035843,1727159443125,-6859.13944195,0.00032,15]
[339035844,1727159443137,-326.0,0.00032,2]
[339035845,1727159443149,-1000.0,0.00032,120]
[339035846,1727159443162,-35664.0,0.00032,120]
[339035847,1727159443174,-77949.50779384,0.00032,30]
[339035848,1727159443187,-184.89774299,0.00032086,2]
[339035849,1727159443199,-208.977489,0.00032186,2]
[339035850,1727159443211,-207.9526123,0.00032186,2]
[339035851,1727159443223,-208.977489,0.00032186,2]
[339035852,1727159443235,-208.977489,0.00032186,2]
[339035853,1727159443246,-208.977489,0.00032186,2]
[339035854,1727159443255,-417.8233686,0.00032186,2]
[339035855,1727159443265,-153.0,0.00032248,2]
[339035856,1727159443275,-500.0,0.00032328,30]
[339035857,1727159443284,-500.0,0.00032328,30]
[339035858,1727159443433,-500.0,0.00032328,30]
[339035859,1727159443451,-500.0,0.00032328,30]